bitfinex-derivatives/quotes_BTCF0:USTF0_20210705
["timestamp","ask_amount","ask_price","bid_price","bid_amount"]
[1625458661259,0.21337544,34120.0,34119.0,3.60050274]
[1625458661357,0.21337544,34120.0,34119.0,3.65950274]
[1625458661958,0.21337544,34120.0,34119.0,3.60050274]
[1625458662059,0.21337544,34120.0,34119.0,3.65950274]
[1625458662309,0.21337544,34120.0,34119.0,3.60050274]
[1625458662510,0.21337544,34120.0,34119.0,3.65950274]
[1625458664969,0.27037544,34120.0,34119.0,3.65950274]
[1625458665070,0.21337544,34120.0,34119.0,3.65950274]
[1625458665170,0.21337544,34120.0,34119.0,4.69305736]
[1625458665774,0.21337544,34120.0,34119.0,4.63405736]
[1625458666073,0.24057544,34123.0,34119.0,4.63405736]
[1625458666173,0.24057544,34123.0,34119.0,4.69305736]
[1625458666373,0.24057544,34123.0,34120.0,0.01063851]
[1625458666474,0.24057544,34123.0,34122.0,2.7567929]
[1625458666673,0.24057544,34123.0,34122.0,2.8157929]
[1625458666774,0.24057544,34123.0,34122.0,2.87920065]
[1625458666874,0.24057544,34123.0,34122.0,4.49816445]
[1625458667126,0.24057544,34123.0,34122.0,4.59816445]
[1625458667826,0.24057544,34123.0,34122.0,4.53916445]
[1625458669532,0.24057544,34123.0,34122.0,4.54980747]
[1625458669729,0.24057544,34123.0,34122.0,4.53916445]
[1625458669933,0.24057544,34123.0,34122.0,4.54980763]
[1625458673789,0.24057544,34123.0,34122.0,4.60880763]
[1625458673939,0.24057544,34123.0,34122.0,4.61748097]
[1625458674542,0.24057544,34123.0,34122.0,4.55848097]
[1625458674741,0.24057544,34123.0,34122.0,4.61748097]
[1625458679303,0.24057544,34123.0,34122.0,6.17165151]
[1625458681558,0.23397544,34123.0,34122.0,6.17165151]
[1625458682160,0.057,34126.0,34122.0,6.17165151]
[1625458682259,0.057,34126.0,34123.0,0.0875]
[1625458682360,0.16482931,34130.0,34124.0,0.01066466]
[1625458682461,0.16482931,34130.0,34124.0,0.12866466]
[1625458682561,0.16482931,34130.0,34124.0,0.14174593]
[1625458682661,0.5511586,34131.0,34125.0,5.70046684]
[1625458682662,0.057,34131.0,34125.0,5.70046684]
[1625458682760,0.057,34131.0,34126.0,0.01066427]
[1625458682862,0.057,34131.0,34127.0,0.0877]
[1625458682961,0.057,34131.0,34130.0,0.24057544]
[1625458683161,0.057,34131.0,34130.0,0.29957544]
[1625458683261,0.057,34131.0,34130.0,0.39957544]
[1625458683361,0.057,34131.0,34130.0,0.34498496]
[1625458683562,0.057,34131.0,34130.0,3.10875435]
[1625458684011,0.55323969,34131.0,34130.0,1.89960524]
[1625458684514,0.55323969,34131.0,34130.0,0.86319172]
[1625458684962,0.79381513,34131.0,34130.0,0.86319172]
[1625458685163,0.79381513,34131.0,34130.0,1.8998791]
[1625458685713,0.79381513,34131.0,34130.0,2.1961191]
[1625458686112,0.79381513,34131.0,34130.0,2.2551191]
[1625458687215,0.79381513,34131.0,34130.0,2.3141191]
[1625458687613,0.29757544,34131.0,34130.0,2.3141191]
[1625458687713,0.29757544,34131.0,34130.0,2.2551191]
[1625458687863,0.29757544,34131.0,34130.0,2.3141191]
[1625458688064,0.54614897,34131.0,34130.0,3.4646986]
[1625458688415,0.54614897,34131.0,34130.0,3.5236986]
[1625458688514,0.54614897,34131.0,34130.0,2.3141191]
[1625458688515,0.29757544,34131.0,34130.0,2.3141191]
[1625458688867,0.38047075,34131.0,34130.0,2.3141191]
[1625458688966,0.5460959,34131.0,34130.0,3.52369491]
[1625458689870,0.29757544,34131.0,34130.0,3.52369491]
[1625458690224,0.38051788,34131.0,34130.0,3.52369491]
[1625458690625,0.38051788,34131.0,34130.0,3.46469491]
[1625458690725,0.29757544,34131.0,34130.0,3.46469491]
[1625458691430,0.79396405,34131.0,34130.0,2.2551191]
[1625458691527,0.79396405,34131.0,34130.0,2.3141191]
[1625458691827,0.79396405,34131.0,34130.0,2.2551191]
[1625458692180,0.79396405,34131.0,34130.0,2.3141191]
[1625458692480,0.79396405,34131.0,34130.0,2.2551191]
[1625458692578,0.79396405,34131.0,34130.0,2.3141191]
[1625458693180,0.54596395,34131.0,34130.0,3.52361551]
[1625458693279,0.54596395,34131.0,34130.0,3.46461551]
[1625458693629,0.46311266,34131.0,34130.0,2.2551191]
[1625458694130,0.79388616,34131.0,34130.0,2.2551191]
[1625458694332,0.79388616,34131.0,34130.0,2.3141191]
[1625458694685,0.79388616,34131.0,34130.0,2.2551191]
[1625458694784,0.79388616,34131.0,34130.0,2.3141191]
[1625458694882,0.79388616,34131.0,34130.0,3.00523993]
[1625458695085,0.79388616,34131.0,34130.0,2.94623993]
[1625458695790,1.45658633,34131.0,34130.0,2.94623993]
[1625458695985,1.45658633,34131.0,34130.0,3.00523993]
[1625458698138,1.45658633,34131.0,34130.0,4.21564685]
[1625458698439,1.45658633,34131.0,34130.0,4.15664685]
[1625458698638,1.45658633,34131.0,34130.0,4.21564685]
[1625458699845,2.45303877,34131.0,34130.0,4.21564685]
[1625458702050,3.62035668,34131.0,34130.0,4.21564685]
[1625458702402,3.62035668,34131.0,34130.0,4.15664685]
[1625458702601,3.62035668,34131.0,34130.0,4.09764685]
[1625458703354,4.95412708,34131.0,34130.0,2.88723993]
[1625458708166,4.95412708,34131.0,34130.0,2.88283041]
[1625458708467,4.95412708,34131.0,34130.0,2.88724016]
[1625458716490,4.95412708,34131.0,34130.0,2.94624016]
[1625458717994,3.62035668,34131.0,34130.0,4.15881043]
[1625458719843,3.70935668,34131.0,34130.0,4.24711043]
[1625458720093,3.62035668,34131.0,34130.0,4.24711043]
[1625458720194,3.62035668,34131.0,34130.0,4.15881043]
[1625458725711,0.29757544,34131.0,34130.0,0.70022519]
[1625458726360,3.61273872,34131.0,34130.0,4.16488579]
[1625458728070,3.37216328,34131.0,34130.0,4.16488579]
[1625458728167,3.37216328,34131.0,34130.0,4.22388579]
[1625458728371,1.37076328,34131.0,34130.0,4.22388579]
[1625458728469,1.37076328,34131.0,34130.0,4.29157759]
[1625458728668,1.37076328,34131.0,34130.0,5.61833462]
[1625458729068,1.37076328,34131.0,34130.0,5.70483462]
[1625458729268,1.37076328,34131.0,34130.0,5.94541006]
[1625458729420,0.24939251,34131.0,34130.0,7.50409121]
[1625458729869,0.24939251,34131.0,34130.0,12.28309121]
[1625458729971,0.16620633,34131.0,34130.0,12.28309121]
[1625458730471,0.24939345,34131.0,34130.0,12.28309121]
[1625458730823,0.24939345,34131.0,34130.0,7.56309121]
[1625458730924,0.24939345,34131.0,34130.0,7.30159121]
[1625458731144,0.24939345,34131.0,34130.0,7.29089941]
[1625458731222,0.73054433,34131.0,34130.0,7.05032397]
[1625458731334,4.34284433,34131.0,34130.0,7.05032397]
[1625458731573,7.5734832,34131.0,34130.0,2.89325458]
[1625458731773,7.6324832,34131.0,34130.0,2.89325458]
[1625458731872,4.0201832,34131.0,34130.0,2.89325458]
[1625458731973,3.9611832,34131.0,34130.0,2.89325458]
[1625458732097,3.72060776,34131.0,34130.0,2.95225458]
[1625458732198,5.21224824,34131.0,34130.0,1.01902314]
[1625458732381,5.21224824,34131.0,34130.0,6.10212314]
[1625458732589,1.23489406,34131.0,34130.0,9.47900016]
[1625458732779,1.23489406,34131.0,34130.0,9.48969055]
[1625458732890,0.24057544,34131.0,34130.0,9.48969055]
[1625458732990,0.24057544,34131.0,34130.0,9.47900016]
[1625458733280,0.24057544,34131.0,34130.0,9.7195756]
[1625458733385,1.23629828,34131.0,34130.0,4.6364756]
[1625458733492,1.23629828,34131.0,34130.0,4.6934756]
[1625458738896,1.23629828,34131.0,34130.0,4.6344756]
[1625458739294,1.23629828,34131.0,34130.0,4.6934756]
[1625458739545,1.23629828,34131.0,34130.0,4.6344756]
[1625458739646,1.23629828,34131.0,34130.0,4.6934756]
[1625458739746,1.23629828,34131.0,34130.0,4.6344756]
[1625458739895,1.23629828,34131.0,34130.0,4.6934756]
[1625458740246,1.23629828,34131.0,34130.0,4.6344756]
[1625458740447,1.23629828,34131.0,34130.0,4.6934756]
[1625458742549,1.23629828,34131.0,34130.0,4.70416517]
[1625458742700,0.24057544,34131.0,34130.0,4.70416517]
[1625458742799,0.24057544,34131.0,34130.0,4.64516517]
[1625458742901,0.24057544,34131.0,34130.0,4.6344756]
[1625458743000,0.24057544,34131.0,34130.0,4.6934756]
[1625458743100,0.24057544,34131.0,34130.0,4.6344756]
[1625458743200,0.24057544,34131.0,34130.0,4.6934756]
[1625458743201,1.23677187,34131.0,34130.0,4.6934756]
[1625458743804,1.23677187,34131.0,34130.0,4.6344756]
[1625458744306,1.23677187,34131.0,34130.0,4.6934756]
[1625458744606,1.23677187,34131.0,34130.0,4.70416541]
[1625458744957,1.23677187,34131.0,34130.0,4.64516541]
[1625458745056,0.24057544,34131.0,34130.0,4.64516541]
[1625458745258,0.24057544,34131.0,34130.0,4.6344756]
[1625458745357,0.24057544,34131.0,34130.0,4.6934756]
[1625458745456,0.24057544,34131.0,34130.0,4.6344756]
[1625458745555,1.23685117,34131.0,34130.0,4.6934756]
[1625458745658,1.23685117,34131.0,34130.0,4.6344756]
[1625458746360,1.23685117,34131.0,34130.0,4.6934756]
[1625458746658,1.23685117,34131.0,34130.0,4.70416531]
[1625458747410,0.24057544,34131.0,34130.0,4.70416531]
[1625458747611,0.32817544,34131.0,34130.0,4.70416531]
[1625458747711,0.24057544,34131.0,34130.0,4.70416531]
[1625458749064,1.23825934,34131.0,34130.0,4.70416531]
[1625458749612,0.24057544,34131.0,34130.0,4.70416531]
[1625458752067,0.99821641,34132.0,34130.0,4.70416531]
[1625458752168,0.99821641,34132.0,34131.0,0.0885]
[1625458752268,0.99821641,34132.0,34131.0,0.2065]
[1625458752368,0.99821641,34132.0,34131.0,0.2635]
[1625458752468,0.99821641,34132.0,34131.0,3.90398598]
[1625458753376,0.99821641,34132.0,34131.0,4.15524886]
[1625458753473,0.99821641,34132.0,34131.0,4.14456142]
[1625458753770,0.99821641,34132.0,34131.0,4.24456142]
[1625458754272,0.99821641,34132.0,34131.0,4.18556142]
[1625458754373,0.99821641,34132.0,34131.0,4.24456142]
[1625458754571,0.99821641,34132.0,34131.0,4.18556142]
[1625458754673,0.99821641,34132.0,34131.0,4.24456142]
[1625458755223,0.99821641,34132.0,34131.0,4.18556142]
[1625458755324,0.99821641,34132.0,34131.0,4.24456142]
[1625458758180,0.99821641,34132.0,34131.0,3.98106142]
[1625458758281,1.20983641,34132.0,34131.0,3.98106142]
[1625458758381,1.32783641,34132.0,34131.0,1.84405653]
[1625458758482,1.34242669,34132.0,34131.0,1.84405653]
[1625458758587,5.33079418,34132.0,34131.0,0.36412676]
[1625458758983,10.50339418,34132.0,34131.0,0.36412676]
[1625458759083,10.50339418,34132.0,34131.0,0.10438656]
[1625458759385,11.2251205,34132.0,34131.0,0.10438656]
[1625458759484,11.2251205,34132.0,34131.0,0.1]
[1625458759735,12.88217466,34132.0,34131.0,0.1]
[1625458764797,12.86758438,34132.0,34131.0,0.1]
[1625458765098,7.69498438,34132.0,34131.0,0.1]
[1625458767152,6.03793022,34132.0,34131.0,0.1]
[1625458772067,9.84363022,34132.0,34131.0,0.1]
[1625458772815,11.49402394,34132.0,34117.0,0.60424609]
[1625458772915,11.99402394,34132.0,34117.0,0.60424609]
[1625458773218,0.01459683,34131.0,34117.0,0.60424609]
[1625458773316,0.13259683,34131.0,34117.0,0.60424609]
[1625458773417,0.13259683,34131.0,34115.0,0.25888122]
[1625458773418,0.98956855,34118.0,34115.0,0.25888122]
[1625458773519,1.27768855,34118.0,34115.0,0.25888122]
[1625458773619,0.72172632,34116.0,34115.0,0.25888122]
[1625458773718,0.78072632,34116.0,34115.0,0.25888122]
[1625458773967,0.78072632,34116.0,34115.0,0.08629374]
[1625458774468,0.83972632,34116.0,34115.0,0.08629374]
[1625458774572,0.83972632,34116.0,34114.0,1.52136001]
[1625458774970,0.83972632,34116.0,34114.0,0.9173]
[1625458774971,0.98737626,34115.0,34114.0,0.9173]
[1625458775072,1.10537626,34115.0,34114.0,0.9173]
[1625458775522,1.10537626,34115.0,34110.0,0.08624808]
[1625458775621,1.10537626,34115.0,34109.0,0.0862501]
[1625458775622,0.48115088,34111.0,34109.0,0.0862501]
[1625458775721,0.84716088,34111.0,34109.0,0.0862501]
[1625458776225,0.84716088,34111.0,34106.0,1.27557668]
[1625458776226,1.83374732,34111.0,34107.0,0.08625373]
[1625458776725,1.83374732,34111.0,34104.0,0.08626351]
[1625458776726,0.9858641,34108.0,34104.0,0.08626351]
[1625458776825,1.0448641,34108.0,34104.0,0.08626351]
[1625458776925,1.1038641,34108.0,34104.0,0.08626351]
[1625458777025,1.1038641,34108.0,34101.0,1.27573757]
[1625458777127,1.1038641,34108.0,34101.0,1.03516213]
[1625458777226,0.49223704,34105.0,34100.0,0.25849461]
[1625458777327,0.55123704,34105.0,34100.0,0.25849461]
[1625458777426,0.61023704,34105.0,34100.0,0.25849461]
[1625458777525,4.8255,34101.0,34100.0,0.25849461]
[1625458777629,6.31814632,34101.0,34100.0,0.25849461]
[1625458777730,6.43614632,34101.0,34100.0,0.25849461]
[1625458778075,6.43614632,34101.0,34096.0,0.9928]
[1625458778076,9.86995098,34101.0,34096.0,0.9928]
[1625458778176,0.059,34100.0,34096.0,0.9928]
[1625458778289,0.118,34100.0,34096.0,0.9928]
[1625458778380,2.12443658,34097.0,34096.0,0.9928]
[1625458778575,2.24243658,34097.0,34096.0,0.9928]
[1625458779378,1.09852176,34097.0,34096.0,0.9928]
[1625458779630,1.3390972,34097.0,34096.0,0.9928]
[1625458780129,1.3390972,34097.0,34084.0,0.08599269]
[1625458780438,0.08163744,34092.0,34083.0,0.057]
[1625458780535,0.08163744,34092.0,34082.0,0.60197311]
[1625458780536,0.31451744,34092.0,34082.0,0.60197311]
[1625458780629,0.43251744,34092.0,34082.0,0.60197311]
[1625458781080,0.08156267,34089.0,34079.0,0.25797676]
[1625458781180,0.19956267,34089.0,34079.0,0.25797676]
[1625458781581,4.9678,34086.0,34079.0,0.25797676]
[1625458781684,0.96230176,34080.0,34079.0,0.25797676]
[1625458781782,0.96230176,34080.0,34075.0,0.34327761]
[1625458781783,0.96230176,34080.0,34076.0,0.0858194]
[1625458781881,1.02130176,34080.0,34073.0,1.02983284]
[1625458781980,0.5,34079.0,34073.0,1.02983284]
[1625458782107,0.7965,34079.0,34073.0,1.02983284]
[1625458782205,0.2965,34079.0,34073.0,0.97083284]
[1625458782329,0.32324852,34074.0,34073.0,0.97083284]
[1625458782409,0.48495355,34074.0,34058.0,0.17172675]
[1625458782520,0.54395355,34074.0,34058.0,0.17172675]
[1625458782619,0.60295355,34074.0,34058.0,0.17172675]
[1625458782882,0.60295355,34074.0,34053.0,1.27024291]
[1625458782883,0.9492,34059.0,34053.0,1.27024291]
[1625458783019,4.9986,34057.0,34053.0,1.27024291]
[1625458783095,4.9986,34057.0,34053.0,1.10104291]
[1625458783213,4.9986,34057.0,34051.0,1.23071396]
[1625458783301,5.0576,34057.0,34051.0,0.88781396]
[1625458783396,0.059,34053.0,34051.0,0.70241396]
[1625458783489,0.118,34053.0,34051.0,0.45671396]
[1625458783592,0.059,34053.0,34048.0,1.52595467]
[1625458783689,0.96230176,34049.0,34048.0,1.13485467]
[1625458783790,1.02130176,34049.0,34040.0,1.20217504]
[1625458783884,1.80276176,34049.0,34040.0,1.20217504]
[1625458783983,1.86176176,34049.0,34040.0,1.20217504]
[1625458784184,1.86176176,34049.0,34011.0,0.16601484]
[1625458784185,1.11259165,34045.0,34011.0,0.16601484]
[1625458784387,1.17159165,34045.0,34010.0,0.93606568]
[1625458784486,1.23059165,34045.0,34010.0,0.059]
[1625458784590,1.23059165,34045.0,34006.0,1.28507778]
[1625458784693,1.23059165,34045.0,34010.0,0.059]
[1625458784792,0.5,34044.0,34010.0,0.059]
[1625458784994,0.118,34044.0,34010.0,0.059]
[1625458785195,0.059,34044.0,34010.0,0.059]
[1625458785294,1.11259165,34045.0,34010.0,0.059]
[1625458785395,1.11067274,34039.0,34010.0,0.059]
[1625458785493,1.40659274,34039.0,34010.0,0.059]
[1625458785697,0.24057544,34029.0,34028.0,0.24057544]
[1625458785793,0.24057544,34029.0,34028.0,0.29957544]
[1625458785893,0.29957544,34029.0,34028.0,0.29957544]
[1625458786192,0.24057544,34029.0,34028.0,0.29957544]
[1625458786295,0.29957544,34029.0,34028.0,0.29957544]
[1625458786698,0.29957544,34029.0,34028.0,0.39957544]
[1625458786892,0.24057544,34036.0,34028.0,0.39957544]
[1625458786993,0.29957544,34036.0,34028.0,0.45657544]
[1625458787198,0.29957544,34036.0,34028.0,0.39957544]
[1625458787393,0.24057544,34036.0,34028.0,0.39957544]
[1625458787492,0.24057544,34036.0,34028.0,0.29957544]
[1625458787654,1.10517326,34047.0,34035.0,0.48115088]
[1625458787756,0.29957544,34040.0,34039.0,3.6849]
[1625458787844,0.29957544,34040.0,34039.0,3.7439]
[1625458787949,0.24057544,34040.0,34039.0,3.7439]
[1625458788147,0.24057544,34040.0,34039.0,3.8439]
[1625458788249,0.24057544,34040.0,34039.0,0.159]
[1625458788550,0.24057544,34047.0,34039.0,0.1]
[1625458788646,0.24057544,34047.0,34039.0,0.159]
[1625458789050,0.24057544,34047.0,34039.0,0.059]
[1625458789254,0.24057544,34047.0,34046.0,4.9312]
[1625458789348,0.24057544,34047.0,34046.0,5.32587]
[1625458789448,0.24057544,34047.0,34046.0,0.39467]
[1625458789649,0.24057544,34047.0,34046.0,1.11639632]
[1625458789754,0.24057544,34047.0,34046.0,1.21639632]
[1625458789852,0.24057544,34053.0,34046.0,1.21639632]
[1625458789953,0.24057544,34060.0,34052.0,3.5346]
[1625458790053,0.24057544,34060.0,34052.0,3.6506]
[1625458790252,0.24057544,34060.0,34052.0,3.5936]
[1625458790453,0.24057544,34060.0,34052.0,3.5346]
[1625458790553,0.24057544,34060.0,34052.0,3.5936]
[1625458791204,7.544e-05,34060.0,34059.0,0.1]
[1625458791310,2.85048393,34099.0,34059.0,0.43828]
[1625458791419,0.63364308,34067.0,34060.0,0.057]
[1625458791505,0.63364308,34067.0,34060.0,0.059]
[1625458791704,0.63364308,34067.0,34066.0,0.48115088]
[1625458791804,0.63364308,34067.0,34066.0,0.83357088]
[1625458791905,0.24057544,34068.0,34066.0,0.83357088]
[1625458792004,0.63599945,34077.0,34066.0,0.83357088]
[1625458792405,0.63599945,34077.0,34067.0,0.057]
[1625458792506,0.24057544,34079.0,34067.0,0.116]
[1625458793209,0.24057544,34079.0,34067.0,0.059]
[1625458793310,0.24057544,34079.0,34066.0,0.77457088]
[1625458793311,0.85857544,34079.0,34066.0,0.48115088]
[1625458793411,1.09353544,34079.0,34066.0,0.48115088]
[1625458793509,1.03453544,34079.0,34066.0,0.53815088]
[1625458793609,1.09353544,34079.0,34066.0,0.53815088]
[1625458793710,0.72172632,34067.0,34066.0,0.118]
[1625458795313,0.72172632,34067.0,34066.0,0.059]
[1625458796067,0.72172632,34067.0,34066.0,0.118]
[1625458798019,0.72172632,34067.0,34066.0,0.059]
[1625458798671,0.72172632,34067.0,34066.0,0.118]
[1625458799503,0.057,34072.0,34066.0,0.118]
[1625458799591,0.24057544,34079.0,34066.0,0.41078]
[1625458799687,0.29957544,34079.0,34066.0,0.41078]
[1625458799786,0.72172632,34067.0,34066.0,0.35178]
[1625458799878,0.72172632,34067.0,34066.0,0.41078]
[1625458799981,0.72172632,34067.0,34066.0,0.29278]
[1625458800079,0.72172632,34067.0,34066.0,0.35178]
[1625458800179,0.72172632,34067.0,34060.0,0.24057544]
[1625458800180,0.059,34065.0,34060.0,0.24057544]
[1625458800280,0.059,34065.0,34060.0,0.29957544]
[1625458800834,0.059,34065.0,34060.0,0.24057544]
[1625458801133,0.059,34065.0,34060.0,0.29957544]
[1625458801233,0.059,34065.0,34060.0,0.24057544]
[1625458801333,0.72172632,34067.0,34060.0,0.29957544]
[1625458801686,0.72172632,34067.0,34060.0,0.35857544]
[1625458801784,0.72172632,34067.0,34066.0,0.24057544]
[1625458801884,0.72172632,34067.0,34066.0,0.53606544]
[1625458802085,0.71172632,34067.0,34066.0,0.53606544]
[1625458802285,0.23057544,34067.0,34066.0,0.53606544]
[1625458802689,0.23057544,34067.0,34066.0,0.59506544]
[1625458803743,0.23057544,34067.0,34066.0,0.83564088]
[1625458803844,0.23057544,34067.0,34066.0,0.93564088]
[1625458804296,0.23057544,34067.0,34066.0,0.99464088]
[1625458804545,0.24057544,34077.0,34066.0,0.99464088]
[1625458804848,2.86349522,34123.0,34066.0,0.99464088]
[1625458804948,0.059,34087.0,34066.0,0.99464088]
[1625458805050,0.059,34087.0,34066.0,0.89464088]
[1625458805146,0.50466569,34088.0,34067.0,4.8903]
[1625458805246,0.50466569,34088.0,34068.0,0.5]
[1625458805346,0.63793502,34094.0,34068.0,0.618]
[1625458805546,0.63793502,34094.0,34068.0,1.057276]
[1625458805646,0.69693502,34094.0,34068.0,1.057276]
[1625458805746,0.24057544,34089.0,34088.0,0.24057544]
[1625458805846,0.24057544,34089.0,34088.0,0.61232544]
[1625458806447,0.24057544,34089.0,34084.0,0.24057544]
[1625458806546,0.24057544,34089.0,34084.0,0.29957544]
[1625458806746,0.24057544,34089.0,34088.0,0.1]
[1625458806847,0.24057544,34089.0,34088.0,0.32812]
[1625458807954,0.29957544,34089.0,34088.0,0.1]
[1625458808074,0.29957544,34089.0,34061.0,0.5891]
[1625458808173,0.61062544,34089.0,34069.0,1.0555]
[1625458808255,0.66962544,34089.0,34069.0,1.0555]
[1625458808355,0.66962544,34089.0,34069.0,1.1145]
[1625458808356,0.61062544,34089.0,34069.0,1.1145]
[1625458808456,0.66962544,34089.0,34069.0,1.0555]
[1625458808755,0.66962544,34089.0,34069.0,1.1145]
[1625458808855,0.61062544,34089.0,34069.0,1.1145]
[1625458808958,0.55162544,34089.0,34069.0,1.1145]
[1625458809057,0.61062544,34089.0,34069.0,1.1145]
[1625458809157,0.66762544,34089.0,34069.0,1.0555]
[1625458809256,0.61062544,34089.0,34069.0,1.0555]
[1625458809356,0.66962544,34089.0,34069.0,1.1145]
[1625458809759,0.24057544,34076.0,34075.0,0.24057544]
[1625458809859,0.24057544,34076.0,34075.0,0.29957544]
[1625458810259,0.24057544,34083.0,34075.0,0.29957544]
[1625458810459,0.24057544,34083.0,34075.0,0.35857544]
[1625458810909,0.24057544,34083.0,34076.0,0.0872]
[1625458811009,0.24057544,34083.0,34076.0,0.50235]
[1625458811612,0.24057544,34089.0,34076.0,0.50235]
[1625458811811,0.24057544,34089.0,34088.0,0.24057544]
[1625458811912,0.24057544,34089.0,34088.0,0.59556544]
[1625458813063,0.24057544,34089.0,34088.0,0.69556544]
[1625458814364,0.24057544,34089.0,34088.0,0.75456544]
[1625458816467,7.544e-05,34089.0,34088.0,0.75456544]
[1625458816568,0.24057544,34094.0,34088.0,0.75456544]
[1625458816919,0.24057544,34098.0,34088.0,0.75456544]
[1625458816920,0.24057544,34098.0,34088.0,0.65456544]
[1625458817570,0.24057544,34098.0,34097.0,0.1]
[1625458817674,0.24057544,34098.0,34097.0,0.38216]
[1625458817770,0.24057544,34098.0,34097.0,0.86331088]
[1625458818872,0.24057544,34098.0,34097.0,0.80431088]
[1625458824329,0.24057544,34098.0,34097.0,0.86331088]
[1625458825029,0.24057544,34098.0,34097.0,0.80431088]
[1625458825530,0.24057544,34098.0,34097.0,0.58115088]
[1625458827036,0.24057544,34098.0,34097.0,0.64015088]
[1625458827586,0.24057544,34098.0,34097.0,0.88278088]
[1625458827786,0.24057544,34098.0,34097.0,0.94178088]
[1625458827989,0.24057544,34106.0,34097.0,0.88278088]
[1625458828087,0.29957544,34106.0,34097.0,0.88278088]
[1625458828187,0.24057544,34106.0,34097.0,0.88278088]
[1625458828388,0.24057544,34106.0,34097.0,0.78278088]
[1625458828987,0.24057544,34106.0,34097.0,0.84178088]
[1625458829288,0.24057544,34106.0,34097.0,0.78278088]
[1625458829389,0.24057544,34106.0,34105.0,0.1]
[1625458829490,0.24057544,34106.0,34105.0,0.34025]
[1625458829897,0.24057544,34106.0,34105.0,0.82140088]
[1625458829996,0.24057544,34106.0,34105.0,0.48115088]
[1625458830349,0.29957544,34106.0,34105.0,0.48115088]
[1625458830798,0.24057544,34106.0,34105.0,0.48115088]
[1625458831799,0.29957544,34106.0,34105.0,0.48115088]
[1625458832853,0.24057544,34106.0,34105.0,0.48115088]
[1625458833252,0.24057544,34106.0,34105.0,0.24057544]
[1625458834806,0.29757544,34106.0,34105.0,0.24057544]
[1625458834905,0.58567544,34106.0,34105.0,0.24057544]
[1625458835106,0.60033626,34106.0,34105.0,0.24057544]
[1625458835208,0.60033626,34106.0,34097.0,0.48115088]
[1625458835307,0.60033626,34106.0,34097.0,0.54015088]
[1625458835408,0.65933626,34106.0,34097.0,0.54015088]
[1625458835509,0.65933626,34106.0,34097.0,0.48115088]
[1625458835605,0.01466131,34105.0,34097.0,0.48115088]
[1625458835705,0.07366131,34105.0,34097.0,0.48115088]
[1625458835906,0.48115088,34098.0,34097.0,0.24057544]
[1625458836006,0.79834088,34098.0,34097.0,0.24057544]
[1625458836106,0.85734088,34098.0,34097.0,0.24057544]
[1625458836205,0.85734088,34098.0,34087.0,0.24057544]
[1625458836306,0.91634088,34098.0,34087.0,0.24057544]
[1625458836808,0.85734088,34098.0,34087.0,0.24057544]
[1625458836909,0.85734088,34098.0,34089.0,1.0045]
[1625458836910,1.28902997,34098.0,34089.0,1.0045]
[1625458837049,1.02883997,34098.0,34089.0,0.9455]
[1625458837124,0.96983997,34098.0,34089.0,1.0635]
[1625458837218,0.96983997,34098.0,34090.0,0.00437844]
[1625458837326,0.96983997,34098.0,34090.0,0.33155844]
[1625458837424,0.48954335,34103.0,34090.0,0.39055844]
[1625458837509,0.54854335,34103.0,34090.0,0.39055844]
[1625458837814,0.01465293,34102.0,34091.0,0.06337821]
[1625458837911,0.01465293,34102.0,34101.0,0.24057544]
[1625458838013,0.01465293,34102.0,34101.0,0.54967544]
[1625458838360,0.01465278,34104.0,34101.0,0.54967544]
[1625458838466,0.07365278,34104.0,34101.0,0.54967544]
[1625458838561,0.13265278,34104.0,34101.0,0.54967544]
[1625458838668,0.07365278,34104.0,34101.0,0.54967544]
[1625458838914,0.0146524,34103.0,34101.0,0.54967544]
[1625458839214,0.78739535,34106.0,34101.0,0.60867544]
[1625458839314,0.84639535,34106.0,34101.0,0.60867544]
[1625458839415,0.84639535,34106.0,34101.0,0.54967544]
[1625458839512,0.35657544,34106.0,34101.0,0.54967544]
[1625458839663,0.01465189,34105.0,34101.0,0.54967544]
[1625458839865,0.13265189,34105.0,34101.0,0.54967544]
[1625458839965,0.24057544,34102.0,34101.0,0.54967544]
[1625458840064,0.35657544,34102.0,34101.0,0.54967544]
[1625458840214,0.37122746,34102.0,34101.0,0.54967544]
[1625458840718,0.31422746,34102.0,34101.0,0.54967544]
[1625458840815,0.25522746,34102.0,34101.0,0.54967544]
[1625458841015,0.24057544,34102.0,34101.0,0.54967544]
[1625458841116,0.29957544,34102.0,34101.0,0.54967544]
[1625458841265,0.31422729,34102.0,34101.0,0.54967544]
[1625458841366,0.25522729,34102.0,34101.0,0.54967544]
[1625458841568,0.31222729,34102.0,34101.0,0.54967544]
[1625458841767,0.25522729,34102.0,34101.0,0.54967544]
[1625458841967,0.31422729,34102.0,34101.0,0.54967544]
[1625458842220,0.25522729,34102.0,34101.0,0.54967544]
[1625458843820,0.01465185,34102.0,34101.0,0.66767544]
[1625458843921,0.01465185,34102.0,34101.0,0.91262849]
[1625458844221,0.01465069,34105.0,34101.0,0.91262849]
[1625458844422,0.01465069,34105.0,34101.0,0.85362849]
[1625458844522,0.01465069,34105.0,34102.0,0.00437749]
[1625458844623,0.01465069,34105.0,34102.0,0.06337749]
[1625458844773,0.07365069,34105.0,34102.0,0.06337749]
[1625458844924,0.01465069,34105.0,34102.0,0.06337749]
[1625458845024,0.01465042,34104.0,34103.0,0.00437739]
[1625458845124,0.01465042,34104.0,34103.0,0.06337739]
[1625458845276,0.01465036,34105.0,34103.0,0.06337739]
[1625458845830,0.29757544,34106.0,34103.0,0.06337739]
[1625458845831,0.29757544,34106.0,34103.0,0.059]
[1625458845926,0.29757544,34106.0,34105.0,0.24057544]
[1625458846033,0.35657544,34106.0,34105.0,0.24057544]
[1625458846127,0.29757544,34106.0,34105.0,0.24057544]
[1625458846379,0.07164889,34106.0,34105.0,0.3039521]
[1625458846477,0.01464889,34106.0,34105.0,0.3629521]
[1625458846677,0.49280383,34108.0,34105.0,0.3629521]
[1625458846880,0.49289145,34109.0,34105.0,0.3629521]
[1625458846979,0.49289145,34109.0,34106.0,0.00437583]
[1625458847081,0.49289145,34109.0,34106.0,0.12237583]
[1625458847529,0.49289145,34109.0,34106.0,0.118]
[1625458847830,0.4947423,34112.0,34107.0,0.00437578]
[1625458847933,0.4947423,34112.0,34111.0,0.48115088]
[1625458848029,0.4947423,34112.0,34111.0,0.76059088]
[1625458848229,0.4947423,34112.0,34111.0,0.81959088]
[1625458848333,0.49475299,34113.0,34111.0,0.82396612]
[1625458848680,0.47475299,34113.0,34111.0,0.82396612]
[1625458848786,0.73620965,34118.0,34111.0,0.82396612]
[1625458848881,0.73620965,34118.0,34112.0,0.00437486]
[1625458848981,0.73620965,34118.0,34112.0,0.06337486]
[1625458849282,0.24057544,34118.0,34112.0,0.06337486]
[1625458849381,0.24057544,34118.0,34112.0,0.118]